[Event "December 5 Early 2023"]
[Site "https://www.chess.com"]
[Date "2023.12.05"]
[Round "9"]
[White "Minko, Dmitry"]
[Black "Sarkar, Justin"]
[Result "1-0"]
[Board "144"]
[TimeControl "180+1"]
[WhiteFideId "24188468"]
[BlackFideId "2010011"]
[WhiteElo "2492"]
[BlackElo "2285"]
[WhiteTeam "FID"]
[BlackTeam "USA"]
[WhiteClock "0:00:50"]
[BlackClock "0:00:00"]

1. e4 {[%clk 0:02:54]}  c5 {[%clk 0:02:21]} 2. Nf3 {[%clk 0:02:53]}  Nc6 {[%clk 0:02:19]} 3. d4 {[%clk 0:02:53]}  cxd4 {[%clk 0:02:18]} 4. Nxd4 {[%clk 0:02:54]}  e6 {[%clk 0:02:18]} 5. Nxc6 {[%clk 0:02:53]}  bxc6 {[%clk 0:02:15]} 6. Bd3 {[%clk 0:02:53]}  Nf6 {[%clk 0:02:14]} 7. O-O {[%clk 0:02:52]}  d5 {[%clk 0:02:13]} 8. Nd2 {[%clk 0:02:51]}  Be7 {[%clk 0:02:10]} 9. c4 {[%clk 0:02:51]}  O-O {[%clk 0:02:06]} 10. Qc2 {[%clk 0:02:51]}  e5 {[%clk 0:01:57]} 11. f4 {[%clk 0:02:28]}  dxe4 {[%clk 0:01:45]} 12. Nxe4 {[%clk 0:02:27]}  Nxe4 {[%clk 0:01:45]} 13. Bxe4 {[%clk 0:02:27]}  f5 {[%clk 0:01:46]} 14. Bf3 {[%clk 0:02:10]}  e4 {[%clk 0:01:40]} 15. Be2 {[%clk 0:02:11]}  Bc5+ {[%clk 0:01:35]} 16. Kh1 {[%clk 0:02:11]}  a5 {[%clk 0:01:35]} 17. Bd2 {[%clk 0:02:09]}  Be6 {[%clk 0:01:27]} 18. Bc3 {[%clk 0:02:09]}  Qe7 {[%clk 0:01:20]} 19. Rad1 {[%clk 0:02:08]}  Bb4 {[%clk 0:01:07]} 20. Be5 {[%clk 0:02:05]}  Rfd8 {[%clk 0:01:05]} 21. Qa4 {[%clk 0:02:04]}  Qc5 {[%clk 0:00:36]} 22. a3 {[%clk 0:01:58]}  Bd2 {[%clk 0:00:32]} 23. Qc2 {[%clk 0:01:56]}  e3 {[%clk 0:00:28]} 24. Rf3 {[%clk 0:01:47]}  a4 {[%clk 0:00:20]} 25. Rg3 {[%clk 0:01:47]}  Rd7 {[%clk 0:00:19]} 26. Bf3 {[%clk 0:01:15]}  Qxc4 {[%clk 0:00:16]} 27. Qxc4 {[%clk 0:01:15]}  Bxc4 {[%clk 0:00:16]} 28. Bxc6 {[%clk 0:01:16]}  e2 {[%clk 0:00:16]} 29. Rg1 {[%clk 0:01:12]}  Rad8 {[%clk 0:00:15]} 30. Bxd7 {[%clk 0:01:11]}  Rxd7 {[%clk 0:00:15]} 31. Bc3 {[%clk 0:01:07]}  e1=Q {[%clk 0:00:14]} 32. Rxe1 {[%clk 0:01:06]}  Bxe1 {[%clk 0:00:14]} 33. Bxe1 {[%clk 0:01:07]}  Rd1 {[%clk 0:00:11]} 34. Re3 {[%clk 0:01:08]}  Rb1 {[%clk 0:00:10]} 35. h3 {[%clk 0:00:56]}  Rxb2 {[%clk 0:00:10]} 36. g4 {[%clk 0:00:56]}  fxg4 {[%clk 0:00:06]} 37. hxg4 {[%clk 0:00:57]}  Bd5+ {[%clk 0:00:06]} 38. Kg1 {[%clk 0:00:57]}  Rg2+ {[%clk 0:00:05]} 39. Kf1 {[%clk 0:00:58]}  Rxg4 {[%clk 0:00:05]} 40. Bb4 {[%clk 0:00:47]}  Rxf4+ {[%clk 0:00:02]} 41. Kg1 {[%clk 0:00:48]}  h5 {[%clk 0:00:01]} 42. Re8+ {[%clk 0:00:49]}  Kf7 {[%clk 0:00:01]} 43. Rf8+ {[%clk 0:00:49]}  Kg6 {[%clk 0:00:00]} 44. Rxf4 {[%clk 0:00:50]} 1-0

[Event "December 5 Early 2023"]
[Site "https://www.chess.com"]
[Date "2023.12.05"]
[Round "9"]
[White "Shevchuk, Olexandr"]
[Black "Clawitter, Craig"]
[Result "1-0"]
[Board "145"]
[TimeControl "180+1"]
[WhiteFideId "14113775"]
[BlackFideId "2023105"]
[WhiteElo "2420"]
[BlackElo "2241"]
[WhiteTeam "UKR"]
[BlackTeam "USA"]
[WhiteClock "0:02:27"]
[BlackClock "0:00:31"]

1. d4 {[%clk 0:03:00]}  e6 {[%clk 0:03:00]} 2. c4 {[%clk 0:03:01]}  Nf6 {[%clk 0:03:00]} 3. g3 {[%clk 0:03:01]}  d5 {[%clk 0:03:00]} 4. Nf3 {[%clk 0:03:01]}  Be7 {[%clk 0:03:01]} 5. Bg2 {[%clk 0:03:02]}  O-O {[%clk 0:03:01]} 6. O-O {[%clk 0:03:02]}  dxc4 {[%clk 0:03:02]} 7. Qc2 {[%clk 0:03:02]}  a6 {[%clk 0:03:03]} 8. a4 {[%clk 0:03:03]}  Bd7 {[%clk 0:03:03]} 9. Rd1 {[%clk 0:03:04]}  Bc6 {[%clk 0:03:00]} 10. Nc3 {[%clk 0:03:04]}  Bxf3 {[%clk 0:02:57]} 11. Bxf3 {[%clk 0:03:05]}  Nc6 {[%clk 0:02:57]} 12. Bxc6 {[%clk 0:03:05]}  bxc6 {[%clk 0:02:57]} 13. a5 {[%clk 0:03:06]}  Qc8 {[%clk 0:02:30]} 14. Ra4 {[%clk 0:03:03]}  c5 {[%clk 0:02:30]} 15. dxc5 {[%clk 0:03:02]}  Bxc5 {[%clk 0:02:26]} 16. Rxc4 {[%clk 0:03:00]}  Ba7 {[%clk 0:02:17]} 17. Bf4 {[%clk 0:02:46]}  Bb8 {[%clk 0:02:08]} 18. Ne4 {[%clk 0:02:43]}  Nd5 {[%clk 0:01:49]} 19. Bd6 {[%clk 0:02:34]}  Rd8 {[%clk 0:01:39]} 20. Ba3 {[%clk 0:02:34]}  Nf6 {[%clk 0:01:01]} 21. Nxf6+ {[%clk 0:02:29]}  gxf6 {[%clk 0:01:00]} 22. Rg4+ {[%clk 0:02:27]}  Kh8 {[%clk 0:00:57]} 23. Be7 {[%clk 0:02:27]}  Rxd1+ {[%clk 0:00:56]} 24. Qxd1 {[%clk 0:02:28]}  f5 {[%clk 0:00:31]} 25. Bf6# {[%clk 0:02:27]} 1-0

[Event "December 5 Early 2023"]
[Site "https://www.chess.com"]
[Date "2023.12.05"]
[Round "9"]
[White "Lopusiewicz, Piotr"]
[Black "Florianovitz, Derlei Alex"]
[Result "1-0"]
[Board "146"]
[TimeControl "180+1"]
[WhiteFideId "1116029"]
[BlackFideId "2114178"]
[WhiteElo "2415"]
[BlackElo "2202"]
[WhiteTeam "POL"]
[BlackTeam "BRA"]
[WhiteClock "0:00:56"]
[BlackClock "0:00:00"]

1. d4 {[%clk 0:03:00]}  Nf6 {[%clk 0:02:59]} 2. c4 {[%clk 0:03:01]}  e6 {[%clk 0:02:59]} 3. Nf3 {[%clk 0:03:01]}  d5 {[%clk 0:02:58]} 4. Nc3 {[%clk 0:03:01]}  Be7 {[%clk 0:02:57]} 5. Bf4 {[%clk 0:03:01]}  O-O {[%clk 0:02:56]} 6. e3 {[%clk 0:03:01]}  c6 {[%clk 0:02:56]} 7. Rc1 {[%clk 0:03:00]}  Nbd7 {[%clk 0:02:54]} 8. Qc2 {[%clk 0:02:59]}  dxc4 {[%clk 0:02:50]} 9. Bxc4 {[%clk 0:02:59]}  b5 {[%clk 0:02:50]} 10. Bd3 {[%clk 0:03:00]}  Bb7 {[%clk 0:02:50]} 11. O-O {[%clk 0:02:56]}  a6 {[%clk 0:02:51]} 12. a4 {[%clk 0:02:56]}  b4 {[%clk 0:02:48]} 13. Ne4 {[%clk 0:02:56]}  Nxe4 {[%clk 0:02:46]} 14. Bxe4 {[%clk 0:02:56]}  Rc8 {[%clk 0:02:44]} 15. Bxh7+ {[%clk 0:02:53]}  Kh8 {[%clk 0:02:44]} 16. Bd3 {[%clk 0:02:46]}  c5 {[%clk 0:02:43]} 17. Qe2 {[%clk 0:02:46]}  f5 {[%clk 0:01:56]} 18. Bxa6 {[%clk 0:02:34]}  Bxa6 {[%clk 0:01:39]} 19. Qxa6 {[%clk 0:02:34]}  Rf6 {[%clk 0:01:40]} 20. Be5 {[%clk 0:02:30]}  Nxe5 {[%clk 0:01:38]} 21. dxe5 {[%clk 0:02:27]}  Rh6 {[%clk 0:01:37]} 22. Rfd1 {[%clk 0:02:26]}  Qe8 {[%clk 0:01:33]} 23. Qb5 {[%clk 0:02:17]}  Qh5 {[%clk 0:01:30]} 24. Rd7 {[%clk 0:02:07]}  Re8 {[%clk 0:01:29]} 25. Qb7 {[%clk 0:01:35]}  Bf8 {[%clk 0:01:28]} 26. h4 {[%clk 0:01:25]}  Rg6 {[%clk 0:00:40]} 27. g3 {[%clk 0:01:16]}  Qg4 {[%clk 0:00:27]} 28. Ng5 {[%clk 0:01:12]}  c4 {[%clk 0:00:17]} 29. a5 {[%clk 0:00:59]}  Rxg5 {[%clk 0:00:02]} 30. hxg5 {[%clk 0:00:58]}  Qxg5 {[%clk 0:00:00]} 31. a6 {[%clk 0:00:56]} 1-0

[Event "December 5 Early 2023"]
[Site "https://www.chess.com"]
[Date "2023.12.05"]
[Round "9"]
[White "Pertinez Soria, Juan Luis"]
[Black "Mayaud, Raphael"]
[Result "0-1"]
[Board "147"]
[TimeControl "180+1"]
[WhiteFideId "2225620"]
[BlackFideId "627151"]
[WhiteElo "2164"]
[BlackElo "2406"]
[WhiteTeam "ESP"]
[BlackTeam "FRA"]
[WhiteClock "0:00:16"]
[BlackClock "0:00:14"]

1. d4 {[%clk 0:03:00]}  d5 {[%clk 0:02:58]} 2. Nf3 {[%clk 0:03:00]}  Nf6 {[%clk 0:02:55]} 3. Bf4 {[%clk 0:03:00]}  e6 {[%clk 0:02:52]} 4. e3 {[%clk 0:02:59]}  c5 {[%clk 0:02:53]} 5. Nbd2 {[%clk 0:02:56]}  Nc6 {[%clk 0:02:52]} 6. c3 {[%clk 0:02:56]}  Nh5 {[%clk 0:02:50]} 7. Bg5 {[%clk 0:02:53]}  f6 {[%clk 0:02:49]} 8. Bh4 {[%clk 0:02:53]}  g6 {[%clk 0:02:49]} 9. h3 {[%clk 0:02:48]}  cxd4 {[%clk 0:02:48]} 10. exd4 {[%clk 0:02:47]}  Bd6 {[%clk 0:02:43]} 11. Bd3 {[%clk 0:02:46]}  Nf4 {[%clk 0:02:29]} 12. Bf1 {[%clk 0:02:40]}  Qc7 {[%clk 0:02:21]} 13. Bg3 {[%clk 0:02:36]}  Bd7 {[%clk 0:02:16]} 14. Bxf4 {[%clk 0:02:33]}  Bxf4 {[%clk 0:02:15]} 15. Qb3 {[%clk 0:02:33]}  O-O {[%clk 0:01:47]} 16. g3 {[%clk 0:02:30]}  Bd6 {[%clk 0:01:44]} 17. Bg2 {[%clk 0:02:28]}  Na5 {[%clk 0:01:36]} 18. Qc2 {[%clk 0:02:27]}  Nc4 {[%clk 0:01:36]} 19. O-O {[%clk 0:02:26]}  Rac8 {[%clk 0:01:36]} 20. Nxc4 {[%clk 0:02:23]}  Qxc4 {[%clk 0:01:35]} 21. Rfe1 {[%clk 0:02:21]}  b5 {[%clk 0:01:33]} 22. a3 {[%clk 0:02:20]}  a5 {[%clk 0:01:32]} 23. Qd2 {[%clk 0:02:19]}  Rc7 {[%clk 0:01:24]} 24. Rac1 {[%clk 0:02:16]}  Qc6 {[%clk 0:01:00]} 25. h4 {[%clk 0:02:13]}  Kg7 {[%clk 0:00:58]} 26. Bh3 {[%clk 0:02:12]}  Re8 {[%clk 0:00:54]} 27. Re3 {[%clk 0:02:06]}  b4 {[%clk 0:00:51]} 28. axb4 {[%clk 0:02:03]}  axb4 {[%clk 0:00:51]} 29. Rce1 {[%clk 0:02:03]}  Kf7 {[%clk 0:00:50]} 30. h5 {[%clk 0:01:55]}  bxc3 {[%clk 0:00:50]} 31. bxc3 {[%clk 0:01:53]}  Qc4 {[%clk 0:00:35]} 32. Qc2 {[%clk 0:01:44]}  Ra7 {[%clk 0:00:31]} 33. hxg6+ {[%clk 0:01:39]}  hxg6 {[%clk 0:00:31]} 34. Nh4 {[%clk 0:01:39]}  f5 {[%clk 0:00:32]} 35. Nf3 {[%clk 0:01:37]}  Kf6 {[%clk 0:00:29]} 36. R3e2 {[%clk 0:01:25]}  Ra3 {[%clk 0:00:28]} 37. Qd2 {[%clk 0:01:24]}  Qxc3 {[%clk 0:00:21]} 38. Qg5+ {[%clk 0:01:24]}  Kf7 {[%clk 0:00:21]} 39. Nh4 {[%clk 0:01:24]}  Rg8 {[%clk 0:00:20]} 40. Bxf5 {[%clk 0:00:57]}  gxf5 {[%clk 0:00:19]} 41. Qh5+ {[%clk 0:00:57]}  Kf8 {[%clk 0:00:18]} 42. Ng6+ {[%clk 0:00:50]}  Rxg6 {[%clk 0:00:16]} 43. Qxg6 {[%clk 0:00:50]}  Qxd4 {[%clk 0:00:16]} 44. Re3 {[%clk 0:00:40]}  Rxe3 {[%clk 0:00:14]} 45. Rxe3 {[%clk 0:00:41]}  Qg7 {[%clk 0:00:14]} 46. Qh5 {[%clk 0:00:36]}  f4 {[%clk 0:00:14]} 47. Rf3 {[%clk 0:00:36]}  Ke7 {[%clk 0:00:11]} 48. Qh4+ {[%clk 0:00:31]}  Qf6 {[%clk 0:00:11]} 49. Qh7+ {[%clk 0:00:31]}  Qf7 {[%clk 0:00:12]} 50. Qh4+ {[%clk 0:00:31]}  Ke8 {[%clk 0:00:12]} 51. Qh8+ {[%clk 0:00:27]}  Ke7 {[%clk 0:00:13]} 52. Qh4+ {[%clk 0:00:27]}  Qf6 {[%clk 0:00:12]} 53. Qh7+ {[%clk 0:00:27]}  Kd8 {[%clk 0:00:12]} 54. Qg8+ {[%clk 0:00:22]}  Be8 {[%clk 0:00:12]} 55. gxf4 {[%clk 0:00:19]}  Qg6+ {[%clk 0:00:10]} 56. Qxg6 {[%clk 0:00:19]}  Bxg6 {[%clk 0:00:11]} 57. Kh2 {[%clk 0:00:18]}  Be4 {[%clk 0:00:12]} 58. Rb3 {[%clk 0:00:16]}  Bxf4+ {[%clk 0:00:12]} 59. Kh3 {[%clk 0:00:16]}  Ke7 {[%clk 0:00:13]} 60. Kg4 {[%clk 0:00:16]}  Be5 {[%clk 0:00:12]} 61. f4 {[%clk 0:00:16]}  Bd4 {[%clk 0:00:12]} 62. Rb6 {[%clk 0:00:15]}  Kf6 {[%clk 0:00:12]} 63. Rb7 {[%clk 0:00:16]}  Bf5+ {[%clk 0:00:12]} 64. Kf3 {[%clk 0:00:15]}  Bc5 {[%clk 0:00:12]} 65. Rc7 {[%clk 0:00:14]}  Be4+ {[%clk 0:00:12]} 66. Kg4 {[%clk 0:00:11]}  Bd6 {[%clk 0:00:12]} 67. Rc6 {[%clk 0:00:11]}  Ke7 {[%clk 0:00:13]} 68. Ra6 {[%clk 0:00:12]}  Bf5+ {[%clk 0:00:12]} 69. Kf3 {[%clk 0:00:11]}  Kd7 {[%clk 0:00:12]} 70. Rb6 {[%clk 0:00:09]}  Be7 {[%clk 0:00:12]} 71. Ra6 {[%clk 0:00:10]}  Bf6 {[%clk 0:00:12]} 72. Rb6 {[%clk 0:00:10]}  d4 {[%clk 0:00:13]} 73. Ra6 {[%clk 0:00:09]}  d3 {[%clk 0:00:13]} 74. Ke3 {[%clk 0:00:10]}  Ke7 {[%clk 0:00:12]} 75. Ra2 {[%clk 0:00:08]}  Kf7 {[%clk 0:00:12]} 76. Rh2 {[%clk 0:00:09]}  Ke7 {[%clk 0:00:12]} 77. Rg2 {[%clk 0:00:09]}  Kd6 {[%clk 0:00:12]} 78. Rh2 {[%clk 0:00:10]}  Kd5 {[%clk 0:00:12]} 79. Ra2 {[%clk 0:00:09]}  Kc4 {[%clk 0:00:12]} 80. Ra8 {[%clk 0:00:09]}  Kc3 {[%clk 0:00:11]} 81. Rc8+ {[%clk 0:00:10]}  Kb2 {[%clk 0:00:11]} 82. Rb8+ {[%clk 0:00:10]}  Kc2 {[%clk 0:00:11]} 83. Rc8+ {[%clk 0:00:10]}  Kd1 {[%clk 0:00:11]} 84. Rd8 {[%clk 0:00:11]}  Ke1 {[%clk 0:00:10]} 85. Rd6 {[%clk 0:00:10]}  Kf1 {[%clk 0:00:10]} 86. Rd7 {[%clk 0:00:09]}  Kg2 {[%clk 0:00:10]} 87. Rd6 {[%clk 0:00:09]}  Kf1 {[%clk 0:00:10]} 88. Rd7 {[%clk 0:00:09]}  Bc3 {[%clk 0:00:10]} 89. Rd6 {[%clk 0:00:09]}  d2 {[%clk 0:00:09]} 90. Rd7 {[%clk 0:00:09]}  Ke1 {[%clk 0:00:08]} 91. Rd6 {[%clk 0:00:09]}  d1=Q {[%clk 0:00:08]} 92. Rxd1+ {[%clk 0:00:09]}  Kxd1 {[%clk 0:00:09]} 93. Kf3 {[%clk 0:00:08]}  Bf6 {[%clk 0:00:10]} 94. Kg3 {[%clk 0:00:07]}  Kd2 {[%clk 0:00:11]} 95. Kf3 {[%clk 0:00:08]}  Kd3 {[%clk 0:00:11]} 96. Kf2 {[%clk 0:00:09]}  Ke4 {[%clk 0:00:10]} 97. Kg3 {[%clk 0:00:09]}  Ke3 {[%clk 0:00:11]} 98. Kg2 {[%clk 0:00:08]}  Kxf4 {[%clk 0:00:12]} 99. Kf1 {[%clk 0:00:09]}  Ke3 {[%clk 0:00:12]} 100. Ke1 {[%clk 0:00:09]}  Kd3 {[%clk 0:00:13]} 101. Kf1 {[%clk 0:00:10]}  e5 {[%clk 0:00:13]} 102. Ke1 {[%clk 0:00:11]}  e4 {[%clk 0:00:14]} 103. Kd1 {[%clk 0:00:11]}  e3 {[%clk 0:00:14]} 104. Ke1 {[%clk 0:00:12]}  Bc3+ {[%clk 0:00:15]} 105. Kf1 {[%clk 0:00:13]}  e2+ {[%clk 0:00:15]} 106. Kg2 {[%clk 0:00:14]}  Be4+ {[%clk 0:00:15]} 107. Kg3 {[%clk 0:00:15]}  e1=Q+ {[%clk 0:00:15]} 108. Kf4 {[%clk 0:00:15]}  Qe3+ {[%clk 0:00:16]} 109. Kg4 {[%clk 0:00:16]}  Qf3+ {[%clk 0:00:15]} 110. Kg5 {[%clk 0:00:17]}  Bf6+ {[%clk 0:00:14]} 111. Kh6 {[%clk 0:00:16]}  Qf4+ {[%clk 0:00:13]} 112. Kh5 {[%clk 0:00:16]}  Qg5# {[%clk 0:00:14]} 0-1

[Event "December 5 Early 2023"]
[Site "https://www.chess.com"]
[Date "2023.12.05"]
[Round "9"]
[White "BestestBP"]
[Black "Viskelis, Darius"]
[Result "1-0"]
[Board "149"]
[TimeControl "180+1"]
[BlackFideId "12800830"]
[WhiteElo "2064"]
[BlackElo "2375"]
[BlackTeam "LTU"]
[WhiteClock "0:00:12"]
[BlackClock "0:01:14"]

1. d4 {[%clk 0:02:59]}  d5 {[%clk 0:02:57]} 2. Nf3 {[%clk 0:02:58]}  c5 {[%clk 0:02:56]} 3. c4 {[%clk 0:02:55]}  cxd4 {[%clk 0:02:56]} 4. Nxd4 {[%clk 0:02:51]}  e5 {[%clk 0:02:55]} 5. Nf3 {[%clk 0:02:46]}  d4 {[%clk 0:02:54]} 6. e3 {[%clk 0:02:29]}  Nc6 {[%clk 0:02:54]} 7. exd4 {[%clk 0:02:28]}  exd4 {[%clk 0:02:54]} 8. Bd3 {[%clk 0:02:20]}  Nf6 {[%clk 0:02:54]} 9. O-O {[%clk 0:02:20]}  Be7 {[%clk 0:02:54]} 10. Re1 {[%clk 0:02:19]}  O-O {[%clk 0:02:53]} 11. Bg5 {[%clk 0:02:20]}  Bg4 {[%clk 0:02:53]} 12. h3 {[%clk 0:02:19]}  Bh5 {[%clk 0:02:52]} 13. Nbd2 {[%clk 0:02:11]}  h6 {[%clk 0:02:50]} 14. Bh4 {[%clk 0:02:09]}  Re8 {[%clk 0:02:50]} 15. g4 {[%clk 0:01:59]}  Bg6 {[%clk 0:02:49]} 16. Bxg6 {[%clk 0:01:57]}  fxg6 {[%clk 0:02:50]} 17. Qb3 {[%clk 0:01:47]}  Qb6 {[%clk 0:02:32]} 18. Qd3 {[%clk 0:01:30]}  Kh7 {[%clk 0:02:25]} 19. b3 {[%clk 0:01:22]}  Nb4 {[%clk 0:02:16]} 20. Qxd4 {[%clk 0:01:18]}  Nc2 {[%clk 0:02:15]} 21. Qd3 {[%clk 0:00:57]}  Nxa1 {[%clk 0:02:09]} 22. Ne5 {[%clk 0:00:55]}  Nxg4 {[%clk 0:01:49]} 23. Nxg4 {[%clk 0:00:05]}  Bxh4 {[%clk 0:01:46]} 24. Rxa1 {[%clk 0:00:06]}  h5 {[%clk 0:01:44]} 25. Nf3 {[%clk 0:00:04]}  Bf6 {[%clk 0:01:38]} 26. Nxf6+ {[%clk 0:00:02]}  Qxf6 {[%clk 0:01:39]} 27. Rd1 {[%clk 0:00:01]}  Rf8 {[%clk 0:01:38]} 28. Nd4 {[%clk 0:00:01]}  Qxf2+ {[%clk 0:01:37]} 29. Kh1 {[%clk 0:00:01]}  Rad8 {[%clk 0:01:34]} 30. Qc3 {[%clk 0:00:01]}  Rf3 {[%clk 0:01:29]} 31. Qxf3 {[%clk 0:00:01]}  Qxf3+ {[%clk 0:01:29]} 32. Nxf3 {[%clk 0:00:02]}  Rxd1+ {[%clk 0:01:28]} 33. Kg2 {[%clk 0:00:02]}  Ra1 {[%clk 0:01:29]} 34. a4 {[%clk 0:00:02]}  Rb1 {[%clk 0:01:28]} 35. Nd4 {[%clk 0:00:02]}  Rb2+ {[%clk 0:01:27]} 36. Kg3 {[%clk 0:00:03]}  a5 {[%clk 0:01:25]} 37. h4 {[%clk 0:00:02]}  Kg8 {[%clk 0:01:24]} 38. Kf4 {[%clk 0:00:02]}  Kf7 {[%clk 0:01:24]} 39. Ke5 {[%clk 0:00:02]}  Rh2 {[%clk 0:01:21]} 40. Nf3 {[%clk 0:00:03]}  Rh3 {[%clk 0:01:20]} 41. Ng5+ {[%clk 0:00:03]}  Ke7 {[%clk 0:01:17]} 42. Nxh3 {[%clk 0:00:04]}  g5 {[%clk 0:01:17]} 43. Nxg5 {[%clk 0:00:05]}  g6 {[%clk 0:01:17]} 44. Kd4 {[%clk 0:00:05]}  Kf6 {[%clk 0:01:17]} 45. Kc5 {[%clk 0:00:06]}  Kf5 {[%clk 0:01:18]} 46. Kb6 {[%clk 0:00:07]}  Kg4 {[%clk 0:01:19]} 47. Kxb7 {[%clk 0:00:07]}  Kxh4 {[%clk 0:01:19]} 48. Ne4 {[%clk 0:00:08]}  g5 {[%clk 0:01:16]} 49. c5 {[%clk 0:00:08]}  g4 {[%clk 0:01:16]} 50. c6 {[%clk 0:00:08]}  g3 {[%clk 0:01:17]} 51. Nxg3 {[%clk 0:00:09]}  Kxg3 {[%clk 0:01:17]} 52. c7 {[%clk 0:00:10]}  h4 {[%clk 0:01:17]} 53. c8=Q {[%clk 0:00:10]}  h3 {[%clk 0:01:18]} 54. Qg8+ {[%clk 0:00:10]}  Kh2 {[%clk 0:01:17]} 55. Qh7 {[%clk 0:00:10]}  Kh1 {[%clk 0:01:17]} 56. Ka6 {[%clk 0:00:11]}  h2 {[%clk 0:01:17]} 57. Kxa5 {[%clk 0:00:11]}  Kg1 {[%clk 0:01:17]} 58. Qxh2+ {[%clk 0:00:12]}  Kxh2 {[%clk 0:01:14]} 59. b4 {[%clk 0:00:12]} 1-0

[Event "December 5 Early 2023"]
[Site "https://www.chess.com"]
[Date "2023.12.05"]
[Round "9"]
[White "Mende, Andreas"]
[Black "Skiadopoulos, Nikolaos"]
[Result "1-0"]
[Board "152"]
[TimeControl "180+1"]
[WhiteFideId "4631102"]
[BlackFideId "4200772"]
[WhiteElo "2094"]
[BlackElo "1773"]
[WhiteTeam "GER"]
[BlackTeam "GRE"]
[WhiteClock "0:00:10"]
[BlackClock "0:00:00"]

1. c4 {[%clk 0:03:00]}  Nf6 {[%clk 0:02:58]} 2. g3 {[%clk 0:03:01]}  g6 {[%clk 0:02:58]} 3. Bg2 {[%clk 0:03:01]}  Bg7 {[%clk 0:02:58]} 4. Nc3 {[%clk 0:03:01]}  c6 {[%clk 0:02:57]} 5. e4 {[%clk 0:03:00]}  O-O {[%clk 0:02:56]} 6. Nge2 {[%clk 0:02:59]}  d6 {[%clk 0:02:56]} 7. O-O {[%clk 0:02:59]}  e5 {[%clk 0:02:52]} 8. d3 {[%clk 0:02:59]}  Bg4 {[%clk 0:02:48]} 9. h3 {[%clk 0:02:58]}  Be6 {[%clk 0:02:47]} 10. Be3 {[%clk 0:02:58]}  d5 {[%clk 0:02:32]} 11. exd5 {[%clk 0:02:53]}  cxd5 {[%clk 0:02:32]} 12. d4 {[%clk 0:02:39]}  Nc6 {[%clk 0:01:58]} 13. dxe5 {[%clk 0:02:31]}  Nxe5 {[%clk 0:01:57]} 14. cxd5 {[%clk 0:02:14]}  Bd7 {[%clk 0:01:41]} 15. Bf4 {[%clk 0:02:07]}  Nh5 {[%clk 0:01:37]} 16. Be3 {[%clk 0:01:52]}  Nc4 {[%clk 0:01:32]} 17. Bd4 {[%clk 0:01:34]}  Nxb2 {[%clk 0:01:23]} 18. Qb3 {[%clk 0:01:34]}  Bxd4 {[%clk 0:01:06]} 19. Nxd4 {[%clk 0:01:33]}  Qb6 {[%clk 0:01:06]} 20. Qxb6 {[%clk 0:01:23]}  axb6 {[%clk 0:01:06]} 21. Rab1 {[%clk 0:01:24]}  Nc4 {[%clk 0:01:00]} 22. Rb4 {[%clk 0:01:21]}  b5 {[%clk 0:00:44]} 23. Ndxb5 {[%clk 0:01:14]}  Bxb5 {[%clk 0:00:42]} 24. Rxb5 {[%clk 0:01:14]}  b6 {[%clk 0:00:27]} 25. Rd1 {[%clk 0:00:45]}  Ra3 {[%clk 0:00:22]} 26. Rb3 {[%clk 0:00:39]}  Rxb3 {[%clk 0:00:18]} 27. axb3 {[%clk 0:00:39]}  Na5 {[%clk 0:00:19]} 28. b4 {[%clk 0:00:36]}  Nc4 {[%clk 0:00:19]} 29. d6 {[%clk 0:00:34]}  Nf6 {[%clk 0:00:17]} 30. Nb5 {[%clk 0:00:32]}  Rd8 {[%clk 0:00:12]} 31. Rd4 {[%clk 0:00:19]}  Ne5 {[%clk 0:00:10]} 32. f4 {[%clk 0:00:17]}  Ned7 {[%clk 0:00:09]} 33. Bc6 {[%clk 0:00:16]}  Rc8 {[%clk 0:00:08]} 34. Na7 {[%clk 0:00:15]}  Re8 {[%clk 0:00:05]} 35. Kf2 {[%clk 0:00:12]}  Kg7 {[%clk 0:00:03]} 36. Nb5 {[%clk 0:00:10]}  Rc8 {[%clk 0:00:00]} 37. Nc7 {[%clk 0:00:10]} 1-0

[Event "December 5 Early 2023"]
[Site "https://www.chess.com"]
[Date "2023.12.05"]
[Round "9"]
[White "Teumer, Joerg, Dr."]
[Black "Subramanian, Anusha"]
[Result "0-1"]
[Board "155"]
[TimeControl "180+1"]
[WhiteFideId "4643526"]
[BlackFideId "477710"]
[WhiteElo "2125"]
[BlackElo "2031"]
[WhiteTeam "GER"]
[BlackTeam "ENG"]
[WhiteClock "0:00:00"]
[BlackClock "0:00:31"]

1. f4 {[%clk 0:03:00]}  d5 {[%clk 0:02:59]} 2. Nf3 {[%clk 0:02:59]}  c5 {[%clk 0:02:59]} 3. e3 {[%clk 0:02:58]}  Nc6 {[%clk 0:02:59]} 4. b3 {[%clk 0:02:54]}  Nf6 {[%clk 0:03:00]} 5. Bb2 {[%clk 0:02:53]}  e6 {[%clk 0:02:51]} 6. Bb5 {[%clk 0:02:52]}  a6 {[%clk 0:02:50]} 7. Bxc6+ {[%clk 0:02:52]}  bxc6 {[%clk 0:02:50]} 8. Ne5 {[%clk 0:02:45]}  Qc7 {[%clk 0:02:46]} 9. O-O {[%clk 0:02:34]}  Be7 {[%clk 0:02:43]} 10. d3 {[%clk 0:02:08]}  O-O {[%clk 0:02:33]} 11. Rf3 {[%clk 0:02:02]}  Rd8 {[%clk 0:02:28]} 12. Rh3 {[%clk 0:01:41]}  d4 {[%clk 0:02:25]} 13. e4 {[%clk 0:01:35]}  Bd6 {[%clk 0:02:21]} 14. Nd2 {[%clk 0:01:05]}  Bxe5 {[%clk 0:02:19]} 15. fxe5 {[%clk 0:01:06]}  Qxe5 {[%clk 0:02:19]} 16. Nf3 {[%clk 0:01:05]}  Qc7 {[%clk 0:02:16]} 17. Bc1 {[%clk 0:00:53]}  e5 {[%clk 0:02:14]} 18. Rg3 {[%clk 0:00:41]}  Be6 {[%clk 0:01:58]} 19. Nh4 {[%clk 0:00:30]}  Qd7 {[%clk 0:01:28]} 20. Bg5 {[%clk 0:00:29]}  Bg4 {[%clk 0:01:02]} 21. Qd2 {[%clk 0:00:22]}  Nh5 {[%clk 0:01:00]} 22. Rf1 {[%clk 0:00:10]}  Nxg3 {[%clk 0:00:58]} 23. hxg3 {[%clk 0:00:11]}  f6 {[%clk 0:00:56]} 24. Bxf6 {[%clk 0:00:09]}  gxf6 {[%clk 0:00:54]} 25. Rxf6 {[%clk 0:00:09]}  Rf8 {[%clk 0:00:50]} 26. Qg5+ {[%clk 0:00:06]}  Qg7 {[%clk 0:00:50]} 27. Qxg7+ {[%clk 0:00:03]}  Kxg7 {[%clk 0:00:50]} 28. Rxc6 {[%clk 0:00:03]}  Rfc8 {[%clk 0:00:40]} 29. Rd6 {[%clk 0:00:00]}  Ra7 {[%clk 0:00:31]} 0-1

[Event "December 5 Early 2023"]
[Site "https://www.chess.com"]
[Date "2023.12.05"]
[Round "9"]
[White "Vargas, Mauricio"]
[Black "Jesusesmifuerza"]
[Result "0-1"]
[Board "157"]
[TimeControl "180+1"]
[WhiteFideId "4404572"]
[WhiteElo "1837"]
[BlackElo "2101"]
[WhiteTeam "COL"]
[WhiteClock "0:00:00"]
[BlackClock "0:01:12"]

1. e4 {[%clk 0:03:00]}  e5 {[%clk 0:02:55]} 2. Nf3 {[%clk 0:02:56]}  Nc6 {[%clk 0:02:55]} 3. Bc4 {[%clk 0:02:42]}  Bc5 {[%clk 0:02:56]} 4. O-O {[%clk 0:02:41]}  Nf6 {[%clk 0:02:56]} 5. d4 {[%clk 0:02:41]}  Bxd4 {[%clk 0:02:53]} 6. Nxd4 {[%clk 0:02:41]}  Nxd4 {[%clk 0:02:54]} 7. Bg5 {[%clk 0:02:38]}  h6 {[%clk 0:02:54]} 8. f4 {[%clk 0:02:28]}  d6 {[%clk 0:02:46]} 9. fxe5 {[%clk 0:02:17]}  dxe5 {[%clk 0:02:42]} 10. Bh4 {[%clk 0:02:03]}  g5 {[%clk 0:02:38]} 11. Bg3 {[%clk 0:02:02]}  Qe7 {[%clk 0:02:29]} 12. Nc3 {[%clk 0:01:52]}  Nc6 {[%clk 0:02:27]} 13. Nb5 {[%clk 0:01:40]}  a6 {[%clk 0:02:23]} 14. Nxc7+ {[%clk 0:01:30]}  Qxc7 {[%clk 0:02:23]} 15. Rxf6 {[%clk 0:01:28]}  Be6 {[%clk 0:02:19]} 16. Bxe6 {[%clk 0:01:23]}  fxe6 {[%clk 0:02:20]} 17. Rxe6+ {[%clk 0:01:21]}  Kf8 {[%clk 0:02:16]} 18. Qf3+ {[%clk 0:01:14]}  Kg8 {[%clk 0:02:07]} 19. Rg6+ {[%clk 0:00:57]}  Kh7 {[%clk 0:02:06]} 20. Qh5 {[%clk 0:00:40]}  Qg7 {[%clk 0:01:48]} 21. Rxg7+ {[%clk 0:00:35]}  Kxg7 {[%clk 0:01:47]} 22. Rd1 {[%clk 0:00:32]}  Rad8 {[%clk 0:01:45]} 23. Qg4 {[%clk 0:00:20]}  Rhf8 {[%clk 0:01:36]} 24. Rd7+ {[%clk 0:00:15]}  Rxd7 {[%clk 0:01:35]} 25. Qxd7+ {[%clk 0:00:07]}  Rf7 {[%clk 0:01:36]} 26. Qe6 {[%clk 0:00:00]}  Re7 {[%clk 0:01:12]} 0-1